fUSD/lending_fUSD_20250617
["ID","MTS","AMOUNT","RATE_DAILY","PERIOD"]
[366236984,1750148377373,-9905.49,0.00016602,2]
[366236985,1750148377401,-572.93,0.00016602,2]
[366236986,1750148377430,-151.0,0.00016602,2]
[366236987,1750148377457,-490.0,0.00016602,2]
[366236988,1750148377486,-490.0,0.00016602,2]
[366236989,1750148377515,-490.0,0.00016602,2]
[366236990,1750148377545,-490.0,0.00016602,2]
[366236991,1750148377572,-151.0,0.00016602,2]
[366236992,1750148377600,-283.56542074,0.00016602,2]
[366236993,1750148377628,-490.0,0.00016602,2]
[366236994,1750148377655,-151.0,0.00016602,2]
[366236995,1750148377684,-151.0,0.00016602,2]
[366236996,1750148377716,-490.0,0.00016602,2]
[366236997,1750148377745,-490.0,0.00016602,2]
[366236998,1750148377775,-490.0,0.00016602,2]
[366236999,1750148377805,-490.0,0.00016602,2]
[366237000,1750148377837,-490.0,0.00016602,2]
[366237001,1750148377865,-490.0,0.00016602,2]
[366237002,1750148377894,-490.0,0.00016602,2]
[366237003,1750148377922,-490.0,0.00016602,2]
[366237004,1750148377951,-490.0,0.00016602,2]
[366237005,1750148377980,-490.0,0.00016602,2]
[366237006,1750148378008,-151.0,0.00016602,2]
[366237007,1750148378035,-490.0,0.00016602,2]
[366237008,1750148378064,-490.0,0.00016602,2]
[366237009,1750148378092,-490.0,0.00016602,2]
[366237010,1750148378533,-490.0,0.00016602,2]
[366237011,1750148378596,-768.55,0.00016602,2]
[366237012,1750148378621,-151.0,0.00016602,2]
[366237013,1750148378645,-490.0,0.00016602,2]
[366237014,1750148378669,-490.0,0.00016602,2]
[366237015,1750148378694,-490.0,0.00016602,2]
[366237016,1750148378718,-617.19940066,0.00016602,2]
[366237017,1750148378742,-490.0,0.00016602,2]
[366237018,1750148378767,-490.0,0.00016602,2]
[366237019,1750148378792,-490.0,0.00016602,2]
[366237020,1750148378817,-490.0,0.00016602,2]
[366237021,1750148378842,-490.0,0.00016602,2]
[366237022,1750148378865,-151.0,0.00016602,2]
[366237023,1750148378889,-490.0,0.00016602,2]
[366237024,1750148378912,-489.09553922,0.00016602,2]
[366237025,1750148378936,-875.6,0.00016602,2]
[366237026,1750148378959,-490.0,0.00016602,2]
[366237027,1750148378981,-490.0,0.00016602,2]
[366237028,1750148379004,-490.0,0.00016602,2]
[366237029,1750148379031,-151.0,0.00016602,2]
[366237030,1750148379054,-490.0,0.00016602,2]
[366237031,1750148379077,-893.17,0.00016602,2]
[366237032,1750148379100,-181.7514058,0.00016602,2]
[366237033,1750148379124,-506.73,0.00016602,2]
[366237034,1750148379147,-491.68,0.00016602,2]
[366237035,1750148379172,-490.0,0.00016602,2]
[366237036,1750148379195,-490.0,0.00016602,2]
[366237037,1750148379218,-490.0,0.00016602,2]
[366237038,1750148379242,-490.0,0.00016602,2]
[366237039,1750148379266,-151.0,0.00016602,2]
[366237040,1750148379289,-490.0,0.00016602,2]
[366237041,1750148379314,-2858.74,0.00016602,2]
[366237042,1750148379338,-490.0,0.00016602,2]
[366237043,1750148379360,-490.0,0.00016602,2]
[366237044,1750148379384,-490.0,0.00016602,2]
[366237045,1750148379407,-490.0,0.00016602,2]
[366237046,1750148379432,-490.0,0.00016602,2]
[366237047,1750148379455,-490.0,0.00016602,2]
[366237048,1750148379478,-490.0,0.00016602,2]
[366237049,1750148379504,-490.0,0.00016602,2]
[366237050,1750148379529,-1171.4,0.00016602,2]
[366237051,1750148379556,-3578.46,0.00016602,2]
[366237052,1750148379580,-490.0,0.00016602,2]
[366237053,1750148379607,-490.0,0.00016602,2]
[366237054,1750148379633,-490.0,0.00016602,2]
[366237055,1750148379657,-714.28,0.00016602,2]
[366237056,1750148379682,-490.0,0.00016602,2]
[366237057,1750148379706,-586.29,0.00016602,2]
[366237058,1750148379731,-490.0,0.00016602,2]
[366237059,1750148379771,-1875.02,0.00016602,2]
[366237060,1750148379798,-1324.53,0.00016602,2]
[366237061,1750148379822,-490.0,0.00016602,2]
[366237062,1750148379847,-490.0,0.00016602,2]
[366237063,1750148379870,-490.0,0.00016602,2]
[366237064,1750148379893,-490.0,0.00016602,2]
[366237065,1750148379916,-490.0,0.00016602,2]
[366237066,1750148379941,-555.22,0.00016602,2]
[366237067,1750148379964,-490.0,0.00016602,2]
[366237068,1750148379989,-490.0,0.00016602,2]
[366237069,1750148380012,-574.15,0.00016602,2]
[366237070,1750148380036,-490.0,0.00016602,2]
[366237071,1750148380062,-250.0,0.00016602,2]
[366237072,1750148380086,-898.92,0.00016602,2]
[366237073,1750148380114,-1156.75,0.00016602,2]
[366237074,1750148380139,-490.0,0.00016602,2]
[366237075,1750148380166,-526.12,0.00016602,2]
[366237076,1750148380190,-490.0,0.00016602,2]
[366237077,1750148380213,-698.25,0.00016602,2]
[366237078,1750148380238,-573.61,0.00016602,2]
[366237079,1750148380263,-490.0,0.00016602,2]
[366237080,1750148380288,-490.0,0.00016602,2]
[366237081,1750148380312,-490.0,0.00016602,2]
[366237082,1750148380339,-490.0,0.00016602,2]
[366237083,1750148380363,-490.0,0.00016602,2]
[366237084,1750148380385,-490.0,0.00016602,2]
[366237085,1750148380409,-261.659718,0.00016602,2]
[366237086,1750148380433,-490.0,0.00016602,2]
[366237087,1750148380456,-490.0,0.00016602,2]
[366237088,1750148380480,-708.87,0.00016602,2]
[366237089,1750148380503,-490.0,0.00016602,2]
[366237090,1750148380526,-561.69,0.00016602,2]
[366237091,1750148380552,-490.0,0.00016602,2]
[366237092,1750148380577,-594.49,0.00016602,2]
[366237093,1750148380603,-490.0,0.00016602,2]
[366237094,1750148380627,-490.0,0.00016602,2]
[366237095,1750148380650,-490.0,0.00016602,2]
[366237096,1750148380678,-261.659718,0.00016602,2]
[366237097,1750148380702,-490.0,0.00016602,2]
[366237098,1750148380725,-558.81,0.00016602,2]
[366237099,1750148380748,-170.49713353,0.00016602,2]
[366237100,1750148380773,-490.0,0.00016602,2]
[366237101,1750148380799,-490.0,0.00016602,2]
[366237102,1750148380822,-308.0,0.00016602,2]
[366237103,1750148380846,-490.0,0.00016602,2]
[366237104,1750148380869,-490.0,0.00016602,2]
[366237105,1750148380892,-490.0,0.00016602,2]
[366237106,1750148380915,-490.0,0.00016602,2]
[366237107,1750148380939,-490.0,0.00016602,2]
[366237108,1750148380962,-490.0,0.00016602,2]
[366237109,1750148380986,-490.0,0.00016602,2]
[366237110,1750148381012,-771.22,0.00016602,2]
[366237111,1750148381035,-1713.15,0.00016602,2]
[366237112,1750148381058,-490.0,0.00016602,2]
[366237113,1750148381081,-587.12,0.00016602,2]
[366237114,1750148381105,-490.0,0.00016602,2]
[366237115,1750148381127,-490.0,0.00016602,2]
[366237116,1750148381151,-490.0,0.00016602,2]
[366237117,1750148381174,-490.0,0.00016602,2]
[366237118,1750148381198,-490.0,0.00016602,2]
[366237119,1750148381221,-490.0,0.00016602,2]
[366237120,1750148381246,-300.0,0.00016602,2]
[366237121,1750148381270,-614.11,0.00016602,2]
[366237122,1750148381297,-490.0,0.00016602,2]
[366237123,1750148381321,-513.24,0.00016602,2]
[366237124,1750148381345,-612.33,0.00016602,2]
[366237125,1750148381368,-490.0,0.00016602,2]
[366237126,1750148381394,-490.0,0.00016602,2]
[366237127,1750148381418,-490.0,0.00016602,2]
[366237128,1750148381442,-894.83,0.00016602,2]
[366237129,1750148381466,-490.0,0.00016602,2]
[366237130,1750148381490,-490.0,0.00016602,2]
[366237131,1750148381513,-1117.33,0.00016602,2]
[366237132,1750148381538,-490.0,0.00016602,2]
[366237133,1750148381567,-490.0,0.00016602,2]
[366237134,1750148381596,-490.0,0.00016602,2]
[366237135,1750148381622,-490.0,0.00016602,2]
[366237136,1750148381646,-490.0,0.00016602,2]
[366237137,1750148381834,-490.0,0.00016602,2]
[366237138,1750148381921,-611.66,0.00016602,2]
[366237139,1750148381945,-490.0,0.00016602,2]
[366237140,1750148381972,-2274.08,0.00016602,2]
[366237141,1750148381995,-490.0,0.00016602,2]
[366237142,1750148382018,-1314.0,0.00016602,2]
[366237143,1750148382041,-494.05734832,0.00016602,2]
[366237144,1750148382066,-490.0,0.00016602,2]
[366237145,1750148382088,-197.94545528,0.00016602,2]
[366237146,1750148382112,-490.0,0.00016602,2]
[366237147,1750148382135,-1780.44,0.00016602,2]
[366237148,1750148382158,-490.0,0.00016602,2]
[366237149,1750148382180,-490.0,0.00016602,2]
[366237150,1750148382204,-490.0,0.00016602,2]
[366237151,1750148382229,-2871.52,0.00016602,2]
[366237152,1750148382251,-490.0,0.00016602,2]
[366237153,1750148382275,-1332.89,0.00016602,2]
[366237154,1750148382300,-490.0,0.00016602,2]
[366237155,1750148382325,-611.18,0.00016602,2]
[366237156,1750148382351,-3687.03,0.00016602,2]
[366237157,1750148382376,-1819.25,0.00016602,2]
[366237158,1750148382400,-490.0,0.00016602,2]
[366237159,1750148382424,-490.0,0.00016602,2]
[366237160,1750148382447,-490.0,0.00016602,2]
[366237161,1750148382471,-509.8,0.00016602,2]
[366237162,1750148382496,-490.0,0.00016602,2]
[366237163,1750148382520,-1177.16,0.00016602,2]
[366237164,1750148382551,-490.0,0.00016602,2]
[366237165,1750148382578,-1302.84,0.00016602,2]
[366237166,1750148382601,-490.0,0.00016602,2]
[366237167,1750148382626,-490.0,0.00016602,2]
[366237168,1750148382651,-490.0,0.00016602,2]
[366237169,1750148382676,-490.0,0.00016602,2]
[366237170,1750148382700,-490.0,0.00016602,2]
[366237171,1750148382724,-490.0,0.00016602,2]
[366237172,1750148382751,-699.78,0.00016602,2]
[366237173,1750148382784,-490.0,0.00016602,2]
[366237174,1750148382812,-490.0,0.00016602,2]
[366237175,1750148382836,-490.0,0.00016602,2]
[366237176,1750148382860,-490.0,0.00016602,2]
[366237177,1750148382885,-151.0,0.00016602,2]
[366237178,1750148382909,-490.0,0.00016602,2]
[366237179,1750148382932,-490.0,0.00016602,2]
[366237180,1750148382956,-490.0,0.00016602,2]
[366237181,1750148382980,-490.0,0.00016602,2]
[366237182,1750148383003,-490.0,0.00016602,2]
[366237183,1750148383027,-490.0,0.00016602,2]
[366237184,1750148383051,-553.16,0.00016602,2]
[366237185,1750148383074,-566.48,0.00016602,2]
[366237186,1750148383099,-234.258947,0.00016602,2]
[366237187,1750148383123,-490.0,0.00016602,2]
[366237188,1750148383147,-490.0,0.00016602,2]
[366237189,1750148383173,-490.0,0.00016602,2]
[366237190,1750148383197,-490.0,0.00016602,2]
[366237191,1750148383221,-490.0,0.00016602,2]
[366237192,1750148383246,-490.0,0.00016602,2]
[366237193,1750148383270,-490.0,0.00016602,2]
[366237194,1750148383295,-490.0,0.00016602,2]
[366237195,1750148383321,-490.0,0.00016602,2]
[366237196,1750148383347,-4214.99,0.00016602,2]
[366237197,1750148383371,-490.0,0.00016602,2]
[366237198,1750148383396,-1885.46,0.00016602,2]
[366237199,1750148383420,-490.0,0.00016602,2]
[366237200,1750148383444,-490.0,0.00016602,2]
[366237201,1750148383467,-2001.99,0.00016602,2]
[366237202,1750148383491,-796.83,0.00016602,2]
[366237203,1750148383516,-5266.5,0.00016602,2]
[366237204,1750148383544,-490.0,0.00016602,2]
[366237205,1750148383568,-530.50467146,0.00016602,2]
[366237206,1750148383596,-4179.43,0.00016602,2]
[366237207,1750148383623,-490.0,0.00016602,2]
[366237208,1750148383648,-192.47337857,0.00016602,2]
[366237209,1750148383673,-494.59063002,0.00016602,2]
[366237210,1750148383700,-490.0,0.00016602,2]
[366237211,1750148383725,-490.0,0.00016602,2]
[366237212,1750148383751,-2521.88,0.00016602,2]
[366237213,1750148383779,-490.0,0.00016602,2]
[366237214,1750148383804,-490.0,0.00016602,2]
[366237215,1750148383829,-490.0,0.00016602,2]
[366237216,1750148383854,-490.0,0.00016602,2]
[366237217,1750148383878,-490.0,0.00016602,2]
[366237218,1750148383902,-490.0,0.00016602,2]
[366237219,1750148383927,-490.0,0.00016602,2]
[366237220,1750148383951,-490.0,0.00016602,2]
[366237221,1750148383974,-447.20334853,0.00016602,2]
[366237222,1750148383997,-490.0,0.00016602,2]
[366237223,1750148384021,-959.62,0.00016602,2]
[366237224,1750148384046,-321.17,0.00016602,2]
[366237225,1750148384071,-490.0,0.00016602,2]
[366237226,1750148384095,-3158.41,0.00016602,2]
[366237227,1750148384119,-490.0,0.00016602,2]
[366237228,1750148384141,-490.0,0.00016602,2]
[366237229,1750148384166,-895.0,0.00016602,2]
[366237230,1750148384190,-490.0,0.00016602,2]
[366237231,1750148384213,-490.0,0.00016602,2]
[366237232,1750148384237,-490.0,0.00016602,2]
[366237233,1750148384260,-490.0,0.00016602,2]
[366237234,1750148384284,-2772.93,0.00016602,2]
[366237235,1750148384307,-490.0,0.00016602,2]
[366237236,1750148384330,-490.0,0.00016602,2]
[366237237,1750148384354,-490.0,0.00016602,2]
[366237238,1750148384381,-490.0,0.00016602,2]
[366237239,1750148384406,-490.0,0.00016602,2]
[366237240,1750148384431,-490.0,0.00016602,2]
[366237241,1750148384455,-490.0,0.00016602,2]
[366237242,1750148384480,-490.0,0.00016602,2]
[366237243,1750148384506,-784.86,0.00016602,2]
[366237244,1750148384533,-490.0,0.00016602,2]
[366237245,1750148384561,-520.55,0.00016602,2]
[366237246,1750148384587,-490.0,0.00016602,2]
[366237247,1750148384612,-528.13,0.00016602,2]
[366237248,1750148384638,-490.0,0.00016602,2]
[366237249,1750148384728,-490.0,0.00016602,2]
[366237250,1750148384752,-1877.4,0.00016602,2]
[366237251,1750148384775,-490.0,0.00016602,2]
[366237252,1750148384800,-490.0,0.00016602,2]
[366237253,1750148384825,-490.0,0.00016602,2]
[366237254,1750148384848,-490.0,0.00016602,2]
[366237255,1750148384870,-490.0,0.00016602,2]
[366237256,1750148384894,-427.8416371,0.00016602,2]
[366237257,1750148384918,-490.0,0.00016602,2]
[366237258,1750148384943,-490.0,0.00016602,2]
[366237259,1750148384968,-523.71,0.00016602,2]
[366237260,1750148384992,-1236.35,0.00016602,2]
[366237261,1750148385016,-490.0,0.00016602,2]
[366237262,1750148385040,-517.0,0.00016602,2]
[366237263,1750148385064,-490.0,0.00016602,2]
[366237264,1750148385087,-490.0,0.00016602,2]
[366237265,1750148385110,-490.0,0.00016602,2]
[366237266,1750148385134,-490.0,0.00016602,2]
[366237267,1750148385157,-490.0,0.00016602,2]
[366237268,1750148385183,-490.0,0.00016602,2]
[366237269,1750148385207,-490.0,0.00016602,2]
[366237270,1750148385231,-490.0,0.00016602,2]
[366237271,1750148385255,-523.91,0.00016602,2]
[366237272,1750148385280,-564.28,0.00016602,2]
[366237273,1750148385305,-522.89,0.00016602,2]
[366237274,1750148385332,-12168.21,0.00016602,2]
[366237275,1750148385357,-1281.82,0.00016602,2]
[366237276,1750148385381,-490.0,0.00016602,2]
[366237277,1750148385405,-490.0,0.00016602,2]
[366237278,1750148385428,-490.0,0.00016602,2]
[366237279,1750148385455,-725.98,0.00016602,2]
[366237280,1750148385478,-490.0,0.00016602,2]
[366237281,1750148385502,-490.0,0.00016602,2]
[366237282,1750148385526,-2894.590261,0.00016602,2]
[366237283,1750148385551,-490.0,0.00016602,2]
[366237284,1750148385573,-490.0,0.00016602,2]
[366237285,1750148385599,-490.0,0.00016602,2]
[366237286,1750148385625,-1694.08,0.00016602,2]
[366237287,1750148385649,-490.0,0.00016602,2]
[366237288,1750148385672,-379.50963676,0.00016602,2]
[366237289,1750148385696,-927.1,0.00016602,2]
[366237290,1750148385718,-490.0,0.00016602,2]
[366237291,1750148385741,-490.0,0.00016602,2]
[366237292,1750148385765,-490.0,0.00016602,2]
[366237293,1750148385789,-490.0,0.00016602,2]
[366237294,1750148385812,-544.86,0.00016602,2]
[366237295,1750148385836,-2049.39,0.00016602,2]
[366237296,1750148385859,-490.0,0.00016602,2]
[366237297,1750148385882,-1201.92,0.00016602,2]
[366237298,1750148385905,-490.0,0.00016602,2]
[366237299,1750148385928,-3059.9,0.00016602,2]
[366237300,1750148385952,-3721.28,0.00016602,2]
[366237301,1750148385974,-490.0,0.00016602,2]
[366237302,1750148385997,-490.0,0.00016602,2]
[366237303,1750148386020,-5803.36,0.00016602,2]
[366237304,1750148386043,-490.0,0.00016602,2]
[366237305,1750148386066,-490.0,0.00016602,2]
[366237306,1750148386091,-490.0,0.00016602,2]
[366237307,1750148386128,-490.0,0.00016602,2]
[366237308,1750148386156,-1821.77,0.00016602,2]
[366237309,1750148386180,-150.0,0.00016602,2]
[366237310,1750148386203,-490.0,0.00016602,2]
[366237311,1750148386232,-546.72,0.00016602,2]
[366237312,1750148386256,-150.0,0.00016602,2]
[366237313,1750148386278,-150.0,0.00016602,2]
[366237314,1750148386303,-2217.92,0.00016602,2]
[366237315,1750148386326,-150.0,0.00016602,2]
[366237316,1750148386350,-490.0,0.00016602,2]
[366237317,1750148386375,-490.0,0.00016602,2]
[366237318,1750148386399,-490.0,0.00016602,2]
[366237319,1750148386423,-150.0,0.00016602,2]
[366237320,1750148386447,-490.0,0.00016602,2]
[366237321,1750148386471,-150.0,0.00016602,2]
[366237322,1750148386494,-490.0,0.00016602,2]
[366237323,1750148386520,-490.0,0.00016602,2]
[366237324,1750148386544,-150.0,0.00016602,2]
[366237325,1750148386567,-2597.82,0.00016602,2]
[366237326,1750148386591,-155.8520062,0.00016602,2]
[366237327,1750148386615,-490.0,0.00016602,2]
[366237328,1750148386640,-490.0,0.00016602,2]
[366237329,1750148386672,-1615.02,0.00016602,2]
[366237330,1750148386701,-3491.28,0.00016602,2]
[366237331,1750148386725,-2000.0,0.00016606,2]
[366237332,1750148386748,-500.0,0.00016606,2]
[366237333,1750148386773,-200.0,0.00016606,2]
[366237334,1750148386798,-167.27,0.00016607,2]
[366237335,1750148386822,-150.0,0.00016608,2]
[366237336,1750148386846,-150.49280704,0.00016608,2]
[366237337,1750148386869,-150.0,0.00016608,2]
[366237338,1750148386893,-150.48921831,0.00016608,2]
[366237339,1750148386916,-150.0,0.00016608,2]
[366237340,1750148386941,-150.0,0.00016608,2]
[366237341,1750148386964,-150.30986256,0.00016608,2]
[366237342,1750148386988,-150.0,0.00016608,2]
[366237343,1750148387012,-150.701781,0.00016608,2]
[366237344,1750148387036,-150.74953238,0.00016608,2]
[366237345,1750148387059,-150.0,0.00016608,2]
[366237346,1750148387083,-150.54787253,0.00016608,2]
[366237347,1750148387106,-90031.82600885,0.00016615,2]
[366237348,1750148418320,-150.0,0.0001635,2]
[366237349,1750148418346,-150.0,0.00016353,2]
[366237350,1750148418370,-259.47941929,0.00016378,2]
[366237351,1750148418394,-259.47941929,0.00016383,2]
[366237352,1750148418420,-150.0,0.00016394,2]
[366237353,1750148418444,-1000.0,0.00016395,2]
[366237354,1750148418469,-259.47941929,0.00016395,2]
[366237355,1750148418493,-259.47941929,0.00016396,2]
[366237356,1750148418523,-150.0,0.00016398,2]
[366237357,1750148418551,-200.0,0.00016398,2]
[366237358,1750148418580,-259.47941929,0.00016401,2]
[366237359,1750148418608,-10949.14668806,0.00016413,2]
[366237360,1750148418633,-200.0,0.00016417,2]
[366237361,1750148418661,-200.0,0.00016419,2]
[366237362,1750148418689,-10949.14668806,0.00016424,2]
[366237363,1750148418718,-10949.14668806,0.00016427,2]
[366237364,1750148418746,-200.0,0.00016428,2]
[366237365,1750148418770,-200.0,0.0001643,2]
[366237366,1750148418795,-200.0,0.0001643,2]
[366237367,1750148418821,-150.0,0.00016433,2]
[366237368,1750148418844,-1200.0,0.00016437,2]
[366237369,1750148418870,-300.0,0.00016437,2]
[366237370,1750148418896,-541.19,0.00016438,2]
[366237371,1750148418920,-490.0,0.00016438,2]
[366237372,1750148418944,-490.0,0.00016438,2]
[366237373,1750148418969,-490.0,0.00016438,2]
[366237374,1750148418997,-1255.33,0.00016438,2]
[366237375,1750148419022,-490.0,0.00016438,2]
[366237376,1750148419046,-490.0,0.00016438,2]
[366237377,1750148419072,-490.0,0.00016438,2]
[366237378,1750148419097,-490.0,0.00016438,2]
[366237379,1750148419123,-490.0,0.00016438,2]
[366237380,1750148419148,-490.0,0.00016438,2]
[366237381,1750148419172,-490.0,0.00016438,2]
[366237382,1750148419199,-490.0,0.00016438,2]
[366237383,1750148419225,-490.0,0.00016438,2]
[366237384,1750148419250,-490.0,0.00016438,2]
[366237385,1750148419277,-464.78277133,0.00016438,2]
[366237386,1750148419302,-490.0,0.00016438,2]
[366237387,1750148419326,-490.0,0.00016438,2]
[366237388,1750148419352,-1926.9,0.00016438,2]
[366237389,1750148419378,-490.0,0.00016438,2]
[366237390,1750148419403,-490.0,0.00016438,2]
[366237391,1750148419429,-490.0,0.00016438,2]
[366237392,1750148419454,-490.0,0.00016438,2]
[366237393,1750148419478,-490.0,0.00016438,2]
[366237394,1750148419502,-493.70553023,0.00016438,2]
[366237395,1750148419527,-490.0,0.00016438,2]
[366237396,1750148419876,-490.0,0.00016438,2]
[366237397,1750148419900,-490.0,0.00016438,2]
[366237398,1750148419924,-1170.92,0.00016438,2]
[366237399,1750148419948,-490.0,0.00016438,2]
[366237400,1750148419970,-490.0,0.00016438,2]
[366237401,1750148419992,-490.0,0.00016438,2]
[366237402,1750148420014,-596.79,0.00016438,2]
[366237403,1750148420035,-490.0,0.00016438,2]
[366237404,1750148420060,-490.0,0.00016438,2]
[366237405,1750148420081,-490.0,0.00016438,2]
[366237406,1750148420105,-490.0,0.00016438,2]
[366237407,1750148420129,-490.0,0.00016438,2]
[366237408,1750148420151,-490.0,0.00016438,2]
[366237409,1750148420173,-490.0,0.00016438,2]
[366237410,1750148420197,-490.0,0.00016438,2]
[366237411,1750148420221,-490.0,0.00016438,2]
[366237412,1750148420243,-490.0,0.00016438,2]
[366237413,1750148420265,-490.0,0.00016438,2]
[366237414,1750148420287,-490.0,0.00016438,2]
[366237415,1750148420308,-490.0,0.00016438,2]
[366237416,1750148420330,-490.0,0.00016438,2]
[366237417,1750148420353,-490.0,0.00016438,2]
[366237418,1750148420376,-2014.29,0.00016438,2]
[366237419,1750148420398,-490.0,0.00016438,2]
[366237420,1750148420420,-490.0,0.00016438,2]
[366237421,1750148420441,-1000.0,0.00016438,2]
[366237422,1750148420466,-490.0,0.00016438,2]
[366237423,1750148420488,-490.0,0.00016438,2]
[366237424,1750148420509,-490.0,0.00016438,2]
[366237425,1750148420532,-490.0,0.00016438,2]
[366237426,1750148420555,-565.34,0.00016438,2]
[366237427,1750148420581,-1680.51,0.00016438,2]
[366237428,1750148420603,-490.0,0.00016438,2]
[366237429,1750148420625,-490.0,0.00016438,2]
[366237430,1750148420647,-490.0,0.00016438,2]
[366237431,1750148420675,-150.0,0.00016438,2]
[366237432,1750148420699,-490.0,0.00016438,2]
[366237433,1750148420722,-490.0,0.00016438,2]
[366237434,1750148420746,-1204.0,0.00016438,2]
[366237435,1750148420771,-623.6,0.00016438,2]
[366237436,1750148420799,-490.0,0.00016438,2]
[366237437,1750148420823,-490.0,0.00016438,2]
[366237438,1750148420851,-490.0,0.00016438,2]
[366237439,1750148420877,-5539.12,0.00016438,2]
[366237440,1750148420901,-490.0,0.00016438,2]
[366237441,1750148420925,-490.0,0.00016438,2]
[366237442,1750148420946,-490.0,0.00016438,2]
[366237443,1750148420967,-162.16696304,0.00016438,2]
[366237444,1750148420989,-490.0,0.00016438,2]
[366237445,1750148421012,-490.0,0.00016438,2]
[366237446,1750148421036,-490.0,0.00016438,2]
[366237447,1750148421058,-480.0,0.00016438,2]
[366237448,1750148421081,-490.0,0.00016438,2]
[366237449,1750148421103,-1787.75,0.00016438,2]
[366237450,1750148421124,-490.0,0.00016438,2]
[366237451,1750148421147,-3602.23,0.00016438,2]
[366237452,1750148421169,-490.0,0.00016438,2]
[366237453,1750148421192,-490.0,0.00016438,2]
[366237454,1750148421215,-490.0,0.00016438,2]
[366237455,1750148421238,-3745.26,0.00016438,2]
[366237456,1750148421261,-486.50859548,0.00016438,2]
[366237457,1750148421282,-485.6990593,0.00016438,2]
[366237458,1750148421305,-490.0,0.00016438,2]
[366237459,1750148421326,-490.0,0.00016438,2]
[366237460,1750148421348,-151.0,0.00016438,2]
[366237461,1750148421369,-1000.0,0.0001644,2]
[366237462,1750148421391,-200.0,0.00016441,2]
[366237463,1750148421416,-200.0,0.00016451,2]
[366237464,1750148421438,-259.47941929,0.00016456,2]
[366237465,1750148421464,-10949.14668806,0.00016458,2]
[366237466,1750148421488,-10949.14668806,0.0001646,2]
[366237467,1750148421513,-150.0,0.00016461,2]
[366237468,1750148421536,-5000.0,0.00016462,2]
[366237469,1750148421558,-1082.70235,0.00016463,2]
[366237470,1750148421581,-200.0,0.00016464,2]
[366237471,1750148421606,-150.0,0.00016467,2]
[366237472,1750148421631,-200.0,0.00016471,2]
[366237473,1750148421654,-10949.14668806,0.00016474,2]
[366237474,1750148421678,-259.47941929,0.0001648,2]
[366237475,1750148421703,-200.0,0.00016485,2]
[366237476,1750148421730,-150.0,0.00016486,2]
[366237477,1750148421754,-10949.14668806,0.00016488,2]
[366237478,1750148421777,-200.0,0.00016494,2]
[366237479,1750148421800,-200.0,0.00016494,2]
[366237480,1750148421822,-10949.14668806,0.00016494,2]
[366237481,1750148421844,-150.0,0.000165,2]
[366237482,1750148421869,-150.0,0.000165,2]
[366237483,1750148421892,-353.01221724,0.00016544,2]